Cogmind - Beta 16 @@@ ROGUE MODE // 2025.11.14 @ 17:05:02 Player: Skysub Result: Destroyed self with Mini Grenade Launcher Performance ------------- Evolutions (0) 0 Regions Visited (3) 600 Robots Destroyed (16) 80 Value Destroyed (315) 315 Prototype IDs (12) 240 Alien Tech Used (0) 0 Bonus (30) 30 TOTAL SCORE: 1265 Bonus ------- Follower Combat Kills 30 Cogmind --------- Core Integrity 0/250 Matter 262/300 Energy 68/100 System Corruption 0% Temperature Cool (0) Movement Rolling (150) Ox4 Location -10/Subcaves Parts ------- > --- POWER (1) -------- (None) > --- PROPULSION (2) --- Subdweller Monowheel > --- UTILITY (2) ------ Huge Storage Unit > --- WEAPON (2) ------- Mini Grenade Launcher > --- INVENTORY (25) --- Subdweller Power Source Light Deuterium Engine Meta Core Light Treads Light Treads Subdweller Monowheel Small Storage Unit Medium Matter Pod (100) Subdweller Optics Subdweller Optics Subdweller Optics Improved Targeting Computer Scrap Shield Makeshift System Shield Power Bank Subdweller Machine Gun Mini Grenade Launcher Mini Grenade Launcher Mining Laser Peak State ------------ > --- POWER ------------ Ion Engine > --- PROPULSION ------- Light Treads Wheel > --- UTILITY ---------- Huge Storage Unit Improved Light Armor Plating > --- WEAPON ----------- Subdweller Machine Gun Subdweller Machine Gun > --- INVENTORY -------- Subdweller Power Source Light Deuterium Engine Meta Core Light Treads Light Treads Subdweller Monowheel Subdweller Monowheel Subdweller Monowheel Small Storage Unit Medium Matter Pod Subdweller Optics Subdweller Optics Subdweller Optics Improved Targeting Computer Light Armor Plating Scrap Shield Makeshift System Shield Power Bank Mini Grenade Launcher Mini Grenade Launcher Mini Grenade Launcher Mining Laser Flamer [Rating: 17] Favorites ----------- Power Ion Engine Engine Ion Engine Power Core Light Nuclear Core Propulsion Wheel Treads Light Treads Wheel Wheel Utility Huge Storage Unit Device Seismic Detector Storage Huge Storage Unit Protection Improved Light Armor Plating Weapon Small Laser Energy Gun Small Laser Energy Cannon Subdweller Beam Cannon Ballistic Gun Light Assault Rifle Launcher Mini Grenade Launcher Special Weapon Mining Laser Build | -11 -10 -10 -10 ------- Run | Yrd Mat Min Sub Slots Evolved . | . . . . Power . | . . . . Propulsion . | . . . . Utility . | . . . . Weapon . | . . . . Parts Attached 22 | 7 3 . 12 Power 2 | 1 . . 1 Engine 1 | 1 . . . Core 1 | . . . 1 Reactor . | . . . . Propulsion 7 | 2 2 . 3 Treads 3 | 2 . . 1 Leg . | . . . . Wheel 4 | . 2 . 2 Hover . | . . . . Flight . | . . . . Utility 5 | 2 1 . 2 Device 1 | 1 . . . Storage 2 | 1 1 . . Processor . | . . . . Hackware . | . . . . Protection 2 | . . . 2 Artifact . | . . . . Weapon 8 | 2 . . 6 Energy Gun 1 | 1 . . . Energy Cannon 1 | . . . 1 Ballistic Gun 3 | 1 . . 2 Ballistic Cannon . | . . . . Launcher 1 | . . . 1 Special Weapon 2 | . . . 2 Impact Weapon . | . . . . Slashing Weapon . | . . . . Piercing Weapon . | . . . . Special Melee Weapon . | . . . . Unidentified Prototypes . | . . . . Parts Lost 14 | . . . 14 Power 2 | . . . 2 Propulsion 4 | . . . 4 Utility 3 | . . . 3 Weapon 5 | . . . 5 Highest Loss Streak 9 | . . . 9 To Critical Strikes . | . . . . Average Backups 14 | 3 9 13 19 Power 1 | . 1 1 2 Propulsion 3 | 1 2 3 4 Utility 5 | . 3 5 8 Weapon 3 | . 2 4 4 Tool/Special . | . . . . Unused Backups 17 | . . . 17 Power 3 | . . . 3 Propulsion 1 | . . . 1 Utility 10 | . . . 10 Weapon 2 | . . . 2 Tool/Special 1 | . . . 1 Average Slot Usage (%) 96 | . 100 100 92 Engine 11 | . 14 14 9 Core 1 | . . . 3 Treads 3 | . 13 . . Wheel 22 | . 14 28 22 Device 11 | . 14 14 8 Storage 14 | . 14 14 14 Protection 2 | . . . 5 Energy Gun 11 | . 14 14 8 Ballistic Gun 14 | . 14 14 15 Special Weapon 1 | . . . 3 Peak Build Rating 17 | 7 8 9 17 Average Rating 9 | 5 7 8 12 On Entrance 6 | . 7 8 9 Avg Prop Armor Cover (%) . | . . . . Naked Turns . | . . . . Heaviest Build 96 | 13 88 88 96 Greatest Support 40 | 40 40 20 20 Greatest Overweight (x) 9 | 1 4 4 9 Average Overweight (x) 3 | . 1 4 5 Largest Inventory Capacity 25 | 8 25 25 25 Average Capacity 21 | 7 17 25 25 Most Carried 25 | 5 13 15 25 Average Carried 14 | 3 9 13 20 Final Capacity 25 | 8 25 25 25 Final Carried 20 | 4 13 15 20 Class Distribution -------------------- 100% | Mutant Dominant Class ---------------- Mutant | -10/Materials Mutant | -10/Mines Mutant | -10/Subcaves Resources | -11 -10 -10 -10 ----------- Run | Yrd Mat Min Sub Matter Collected 540 | 287 70 75 108 Remotely . | . . . . Salvage Created 608 | 194 70 106 238 Parts 41 | 17 5 5 14 Haulers Intercepted 1 | . 1 . . Recyclers Shooed . | . . . . Parts Field Recycled . | . . . . Retrieved Matter . | . . . . Parts Self-Destructed 2 | . . . 2 Prevented . | . . . . Parts Restored . | . . . . Kills | -11 -10 -10 -10 ------- Run | Yrd Mat Min Sub Combat Hostiles Destroyed 7 | . . 1 6 Guns 6 | . . 1 5 Cannons 1 | . . . 1 Classes Destroyed 8 | 2 2 2 2 Builder 1 | . . 1 . Tunneler 5 | 5 . . . Hauler 1 | . 1 . . Recycler 2 | 1 . 1 . Watcher 1 | . 1 . . Sentry 1 | . . . 1 Subdweller 5 | . . . 5 Assembled 1 | . . 1 . Best Kill Streak 4 | 4 1 1 3 Combat Bots Only 3 | . . 1 3 Max Kills in Single Turn 1 | 1 1 1 1 Gunslinging . | . . . . Exploded . | . . . . Melee . | . . . . Uniques/NPCs Destroyed . | . . . . Combat | -11 -10 -10 -10 -------- Run | Yrd Mat Min Sub Hostile Shots Fired 72 | . 6 . 66 Missed 15 | . 3 . 12 Hits 57 | . 3 . 54 Projectile 57 | . 3 . 54 Critical Strikes 6 | . 1 . 5 Damage Taken 1399 | . 46 13 1340 Core 255 | . 12 . 243 Absorbed by Shields . | . . . . Core Remaining (%) 100 | 100 . . . Volleys Fired 71 | 17 12 3 39 Largest 2 | 2 2 2 2 Hottest 130 | 60 60 60 130 Shots Fired 119 | 33 24 6 56 Gun 107 | 33 24 6 44 Cannon 3 | . . . 3 Launcher 1 | . . . 1 Special 8 | . . . 8 Kinetic 68 | 17 12 3 36 Thermal 50 | 16 12 3 19 Explosive 1 | . . . 1 Electromagnetic . | . . . . Robot Hit Streak 16 | 11 4 5 16 Robot Miss Streak 2 | 2 2 . 2 Penetration Max . | . . . . Secondary Targets 2 | . . . 2 Max Gunslinging Chain 1 | . . . 1 Shots Hit Robots 87 | 25 14 4 44 Core Hits 31 | 10 4 3 14 Critical Kills . | . . . . Critical Parts Destroyed . | . . . . Critical Strikes 1 | . . . 1 Destroy 1 | . . . 1 Melee Attacks . | . . . . Impact . | . . . . Slashing . | . . . . Piercing . | . . . . Sneak Attacks . | . . . . Combat Hostiles . | . . . . Follow-up Attacks . | . . . . Damage Inflicted 1195 | 244 133 65 753 Guns 1015 | 244 133 38 600 Cannons 82 | . . . 82 Explosions 48 | . . . 48 Melee . | . . . . Ramming 27 | . . 27 . Kinetic 691 | 112 59 7 513 Thermal 429 | 132 74 31 192 Explosive 48 | . . . 48 Electromagnetic . | . . . . Impact . | . . . . Slashing . | . . . . Piercing . | . . . . Highest Corruption . | . . . . Average Corruption . | . . . . Corruption Purged . | . . . . Corruption Blocked . | . . . . Overload Shots . | . . . . Overflow Damage 23 | . . . 23 Projectiles . | . . . . Explosions 23 | . . . 23 Melee . | . . . . Knockbacks . | . . . . Impact . | . . . . Kinetic . | . . . . Secondary . | . . . . Self-Inflicted Damage 58 | . . 13 45 Shots 1 | . . . 1 Rammed 1 | . . 1 . Targets Rammed 1 | . . 1 . Kicked . | . . . . Crushed . | . . . . Highest Temperature 261 | 40 40 20 261 Average Temperature 39 | 19 20 15 116 Received Heat Transfer 883 | . 42 . 841 Siege Activations . | . . . . Martial Activations . | . . . . Shielding Activations . | . . . . Robots Disrupted . | . . . . Combat Hostiles . | . . . . Robots Corrupted . | . . . . Combat Hostiles . | . . . . Parts Fried . | . . . . Impact Corruptions . | . . . . Robots Melted . | . . . . Combat Hostiles . | . . . . Parts Melted . | . . . . Heat Transferred 1021 | 300 175 75 471 Parts Sabotaged . | . . . . Parts Stolen . | . . . . Parts Stripped . | . . . . Power Chain Reactions . | . . . . Alert | -11 -10 -10 -10 ------- Run | Yrd Mat Min Sub Maximum Alert Level . | . . . . Low Security (%) 100 | 100 100 100 . Level 1 . | . . . . Level 2 . | . . . . Level 3 . | . . . . Level 4 . | . . . . Level 5 . | . . . . High Security . | . . . . Max Security . | . . . . Peak Influence 28 | 10 28 6 . Initial . | . . . . Average 2 | 1 4 . . Influence Increases 154 | 30 88 16 20 Destroy 0b10 Robot/C 20 | . . . 20 Destroy 0b10 Robot/NC 50 | 30 10 10 . Destroy Leader 4 | . 4 . . Successful Hack 65 | . 59 6 . Lose Combat Pursuer 15 | . 15 . . Influence Decreases 154 | 30 88 16 20 Time Decay 154 | 30 88 16 20 Squads Dispatched . | . . . . Investigation . | . . . . Extermination . | . . . . Reinforcement . | . . . . Assault . | . . . . Garrison . | . . . . Intercept . | . . . . Searches Triggered . | . . . . Construction Impeded . | . . . . Haulers Reinforced . | . . . . Active Scanning Responses . | . . . . Cargo Convoy Interrupts . | . . . . Stealth | -11 -10 -10 -10 --------- Run | Yrd Mat Min Sub Distress Signals 1 | . 1 . . Communications Jammed . | . . . . Distress Signals . | . . . . Times Spotted 19 | . 8 1 10 Peak Tracking Total 3 | . 2 1 3 Tactical Retreats 2 | . 1 . 1 Traps | -11 -10 -10 -10 ------- Run | Yrd Mat Min Sub Traps Triggered . | . . . . Indirectly . | . . . . Trap Hack Attempts . | . . . . Triggered . | . . . . Disarmed . | . . . . Reprogrammed . | . . . . Reused . | . . . . Traps Extracted . | . . . . Installed . | . . . . Triggered . | . . . . Machines | -11 -10 -10 -10 ---------- Run | Yrd Mat Min Sub Machines Disabled 1 | . . . 1 Max in Single Turn 1 | . . . 1 Machines Repaired . | . . . . Machines Dismantled . | . . . . Machines Sabotaged . | . . . . Overloaded Fab Kills . | . . . . Hacking | -11 -10 -10 -10 --------- Run | Yrd Mat Min Sub Machines Accessed 8 | . 5 1 2 Terminals 6 | . 5 1 . Fabricators . | . . . . Repair Stations . | . . . . Recycling Units . | . . . . Scanalyzers . | . . . . Garrison Access . | . . . . Total Hacks 20 | . 13 1 6 Successful 16 | . 9 1 6 Failed 4 | . 4 . . Catastrophic . | . . . . Database Lockouts . | . . . . Manual 14 | . 13 1 . Terminals 14 | . 13 1 . Fabricators . | . . . . Repair Stations . | . . . . Recycling Units . | . . . . Scanalyzers . | . . . . Garrison Access . | . . . . Terminal Hacks 8 | . 1 1 6 Record 5 | . . . 5 Robot Analysis 1 | . . 1 . Branch Access Points 1 | . 1 . . Proto ID Catalog 1 | . . . 1 Fabricator Hacks . | . . . . Repair Station Hacks . | . . . . Recycling Unit Hacks . | . . . . Scanalyzer . | . . . . Garrison Access Hacks . | . . . . Unauthorized Hacks 8 | . 8 . . Terminals 8 | . 8 . . Botnet 3 | . 3 . . Skim 5 | . 5 . . Fabricators . | . . . . Repair Stations . | . . . . Recycling Units . | . . . . Scanalyzers . | . . . . Garrison Access . | . . . . Data Cores Recovered . | . . . . Used . | . . . . Hacking Detections 3 | . 3 . . Full Trace Events . | . . . . Feedback Events . | . . . . Feedback Blocked . | . . . . Robot Schematics Acquired . | . . . . Robots Built . | . . . . Authchips . | . . . . Time . | . . . . Total Robot Build Rating . | . . . . Part Schematics Acquired . | . . . . Parts Built . | . . . . Authchips . | . . . . Time . | . . . . Total Part Build Rating . | . . . . Part Studies Acquired . | . . . . Parts Repaired . | . . . . Time . | . . . . Parts Recycled . | . . . . Recycled Matter . | . . . . Retrieved Matter . | . . . . Retrieved Components . | . . . . Parts Scanalyzed . | . . . . Part Schematics Acquired . | . . . . Parts Damaged . | . . . . Bothacking | -11 -10 -10 -10 ------------ Run | Yrd Mat Min Sub Used RIF Installer . | . . . . Robots Hacked . | . . . . Non-combat . | . . . . Combat . | . . . . Robot Hacks Applied . | . . . . Relay Couplers Released . | . . . . Fabnet Peak Effective % . | . . . . Robots Rewired . | . . . . Allies Hacked . | . . . . Hacks Repelled . | . . . . Allies | -11 -10 -10 -10 -------- Run | Yrd Mat Min Sub Total Allies 3 | . . 3 . Largest Group 3 | . . 3 3 Highest-Rated Group 40 | . . 40 40 Highest-Rated Ally 16 | . . 16 16 Total Orders . | . . . . Ally Attacks 8 | . . . 8 Total Damage 65 | . . . 65 Kills 1 | . . . 1 Allies Corrupted . | . . . . Allies Melted . | . . . . Intel | -11 -10 -10 -10 ------- Run | Yrd Mat Min Sub Active Infowar (turns) 1606 | 16 440 560 590 Seismic 1606 | 16 440 560 590 Robot Analysis Total 1 | . . 1 . Derelict Logs Recovered 2 | . . 1 1 Drone Launches . | . . . . Drone Recoveries . | . . . . Exploration | -11 -10 -10 -10 ------------- Run | Yrd Mat Min Sub Turns Passed 2246 | 230 440 560 1016 Spaces Moved 1182 | 110 190 334 548 Core 7 | 7 . . . Treads 228 | 103 125 . . Legs . | . . . . Wheels 947 | . 65 334 548 Hover . | . . . . Flight . | . . . . Fastest Speed 50 | 50 140 140 140 Average Speed 152 | 153 153 140 159 Slowest Speed 215 | 160 160 140 215 Overloaded Moves . | . . . . Propulsion Burnouts . | . . . . Robots Hopped . | . . . . Potential Cave-ins . | . . . . Cave-ins Triggered . | . . . . Exploration Rate (%) 40 | 8 41 73 38 Regions Visited 3 Branch Regions 2 Pre-discovered Areas 2 | . 1 . 1 Known Exits Taken 2 | . 1 1 . Unknown Exits Taken 1 | 1 . . . Scrap Searched 4 | . . 1 3 Spaces Dug . | . . . . Terrain Destroyed . | . . . . Melee . | . . . . Projectile . | . . . . AOE . | . . . . Terrain Rammed . | . . . . Walls Destroyed . | . . . . Machines Disabled . | . . . . Actions | -11 -10 -10 -10 --------- Run | Yrd Mat Min Sub Total 1496 | 138 316 421 621 Wait 188 | . 103 82 3 Move 1179 | 109 189 333 548 Hop . | . . . . Pick Up 30 | 5 9 2 14 Fast Attach 8 | 6 . . 2 Attach 9 | 1 . . 8 Detach . | . . . . Swap 7 | . 3 . 4 Drop 3 | . . . 3 Fire 71 | 17 12 3 39 Melee . | . . . . Ram 1 | . . 1 . Kick . | . . . . Crush . | . . . . Escape Stasis . | . . . . Rewire . | . . . . Trap . | . . . . Miscellaneous . | . . . . Route ------- -11/Scrapyard -10/Materials (discovered 5 exits: *Mat x3 / *Min / Sub) -10/Mines (discovered 3 exits: *Mat x2 / *Sub) -10/Subcaves History --------- Turn | Location | Event 5 | -11/Scrapyard | Discovered new exit (range 16) 231 | -11/Scrapyard | Entered Materials 312 | -10/Materials | Build established: Mutant 384 | -10/Materials | Discovered new exit (range 6) 425 | -10/Materials | Identified exit to Mines 486 | -10/Materials | Learned 4 Recycling zone layouts 537 | -10/Materials | Learned Storage emergency access door positions 576 | -10/Materials | Identified exit to Materials 576 | -10/Materials | Identified exit to Subcaves 624 | -10/Materials | Learned 2 Mines zone layouts 634 | -10/Materials | Learned 2 Storage zone layouts 644 | -10/Materials | Learned 2 Mines zone layouts 661 | -10/Materials | Learned Storage terminal intel 671 | -10/Materials | Entered Mines 686 | -10/Mines | Met a Derelict bent on vengeance 801 | -10/Mines | Learned Materials terminal intel 980 | -10/Mines | Found a hidden stash of uninstalled traps 1016 | -10/Mines | Discovered exit to Materials (range 11) 1029 | -10/Mines | Assembled infested the area 1064 | -10/Mines | Discovered exit to Materials (range 13) 1086 | -10/Mines | Assisted by bots powering up and referring to "LRC-V3" 1231 | -10/Mines | Entered Subcaves 1231 | -10/Subcaves | Accompanied by 3 allies 1560 | -10/Subcaves | Lost 3 allies 1700 | -10/Subcaves | Visited 4L-MR0's lab 1722 | -10/Subcaves | Found Power Bank 1809 | -10/Subcaves | Learned Materials emergency access door positions 1821 | -10/Subcaves | A Subdweller sparked back to life 1821 | -10/Subcaves | A Subdweller sparked back to life 1821 | -10/Subcaves | A Subdweller sparked back to life 1878 | -10/Subcaves | Found Meta Core 1886 | -10/Subcaves | Lost 5 parts (1p1n1u2w) 1888 | -10/Subcaves | Visited Clippyterm 1894 | -10/Subcaves | Learned location of Deep Caves (-6) 1894 | -10/Subcaves | Learned Research machine intel 2118 | -10/Subcaves | Ambushed by Subdwellers from Twisted Machinery 2206 | -10/Subcaves | Core integrity fell below 50% 2232 | -10/Subcaves | Core integrity fell below 20% 2247 | -10/Subcaves | Destroyed self with Mini Grenade Launcher Last Messages --------------- 02201_ Ion Engine destroyed. 02202_ HW-LPZ(R) destroyed. 02211_ Wheel destroyed. 02211_ Lgt. Treads destroyed. 02218_ 2L-Z90(R) affixes Scrap Shield Fragment to Scrap Shield. 02218_ Acquired 15 matter. 02223_ Lgt. Armor Plating destroyed. 02223_ Critical hit (Meltdown: +290). 02223_ Searching scrap... 02223_ Found Sub. Beam Cannon. 02223_ Found 49 Matter. 02224_ Acquired 17 matter. 02225_ Acquired 2 matter. 02226_ HV-5FY(R) affixes Scrap Shield Fragment to Scrap Shield. 02228_ Sub. Monowheel destroyed. 02228_ Acquired Sub. Beam Cannon. 02238_ HV-5FY(R) destroyed. 02243_ Sub. Beam Cannon destroyed. 02245_ Sub. Machine Gun destroyed. 02247_ Destroyed Sub. Power Source. Map ----- +----------------------------------------------------+ | #??# #?????????????????????????????????????? | | #### #?????????????????????????????????????? | | #?????????????????????????????????????? | | #?????????????????????????????????????? | | ##?????????????????????????????????????? | | # ###??????????????????????????????????????? | | ### ##????????????????????????????????????????? | | ??## ##?????????????????????????????????????????? | | ??## #??????????????????????????????????????????? | | #?# #??????????????????????????????????????????? | | #### ##??????????????????????????????????????????? | | ## ####????????????????????????????????????????? | | ## ###??????????????????????????????????????? | | ## #??????????????????????????????????????? | | ###### #??????????????????????????????????????? | | ###### ##?##???????????????????????????????????? | | # ### ##??????????????????????????????????? | | # #??????????????????????????????????? | | ## #??????????????????????????????????? | | ## ####??????????????????????????????????? | | ## #?????????????????????????????????????? | | #???????????######????????????????????? | | ?????????##"%$$#????????????????????? | | #???????#=[ "##????????????????????? | | ####???????#!R###?????????????????????? | | ##??????????# !@ ######### #?????????? | | ##???????????##= ## #??????????? | | ## #????????????##< #???????????? | | ###### ####???####### #????????????? | | ## ##### # ## #????????????? | | ## ##????????????? | | ##? ##?????????????? | | ### # # ### ##??? #??????????????? | | #?#############?###????## #?????????????? | | #????????????????????????## #?????????????? | | ## ##??????????????????????????# #?????????????? | | ## ##?????????????????????????????#?????????????? | | #????????????????????????????????????????????? | | ##????????????????????????????????????????????? | | #?????????????????????????????????????????????? | | #?????????????????????????????????????????????? | | #?????????????????????????????????????????????? | | #?????????????????????????????????????????????? | | #?????????????????????????????????????????????? | | ## ?????????????????????????????????????????????? | | #? ?????????????????????????????????????????????? | | ? #????????????????????????????????????????????? | | ? ##????????????????????????????????????????????? | | #?##?????????????????????????????????????????????? | | ?????????????????????????????????????????????????? | +----------------------------------------------------+ Best States ------------- Heat Dissipation 25 Energy Generation 14 Energy Capacity 250 Matter Stores 300 Matter Capacity 300 Sight Range 16 Terrain Scan Density 10 Armor Coverage 150 Evasion (%) 40 Recoil Reduction 2 Item Schematics ----------------- None Robot Schematics ------------------ None Fabricated ------------ Nothing Repaired ---------- Nothing Studied --------- None Alien Tech Used ----------------- None Achievements -------------- None Challenges ------------ None Game ------ Seed TeslaCompanionNukerbomber Manual? 0 Play Time 00:14:08 Cumulative 274.3 hours Start 2025.11.14 @ 16:52:51 End 2025.11.14 @ 17:05:02 Sessions 1 Manual Loads 0 Difficulty Rogue Special Mode None Game No. 296 Rogue 296 Adventurer 0 Explorer 0 Win Type - Total 12 Types 5/0/3/1/1/0/0/1/0/1 Lore% 77 Gallery% 74 Achievement% 54 Wizard Run 0 Options --------- Layout 1 ASCII 0 Keyboard 1 Movement Numpad Keybinds 0 Fullscreen 2 Font 32/SmallcapsGlow Map View 77x35 Zoom Use 0% Tactical HUD 1 Map Filters NONE Filters NONE Steam 1 RUN: fd93ac97-4b95-4721-a4d4-e01c84739042